bitfinex-derivatives/quotes_BTCF0:USTF0_20250828
["timestamp","ask_amount","ask_price","bid_price","bid_amount"]
[1756388517780,0.90665356,112970.0,112960.0,0.29769]
[1756388517781,1.26745356,112970.0,112960.0,0.29769]
[1756388518084,1.83745356,112970.0,112960.0,0.01]
[1756388519280,1.51745356,112970.0,112960.0,0.002]
[1756388519479,1.54745356,112970.0,112960.0,0.002]
[1756388519674,1.54745356,112970.0,112960.0,0.003]
[1756388519872,1.54745356,112970.0,112960.0,0.001]
[1756388520282,1.54945356,112970.0,112960.0,0.001]
[1756388520673,1.29949356,112970.0,112960.0,0.04109]
[1756388520877,1.64949356,112970.0,112960.0,0.001]
[1756388521079,1.64749356,112970.0,112960.0,0.001]
[1756388521274,1.65049356,112970.0,112960.0,0.001]
[1756388521478,1.65049356,112970.0,112950.0,0.38519]
[1756388521479,0.02438,112960.0,112950.0,0.40089]
[1756388521687,0.38985,112960.0,112950.0,0.40089]
[1756388521991,0.41447356,112960.0,112950.0,0.04009]
[1756388522285,0.41447356,112960.0,112940.0,0.04009]
[1756388522286,0.03985,112950.0,112940.0,0.04009]
[1756388522501,1.2756862,112950.0,112930.0,0.3608]
[1756388522783,0.03985,112940.0,112930.0,0.40089]
[1756388523085,0.11132242,112940.0,112930.0,0.40089]
[1756388523292,0.72412876,112940.0,112910.0,0.38537]
[1756388523483,2.0856,112930.0,112920.0,0.0157]
[1756388523685,2.0856,112930.0,112910.0,0.02457]
[1756388523686,2.42107,112930.0,112910.0,0.02457]
[1756388523882,1.21547,112930.0,112920.0,0.04027]
[1756388524283,2.06107,112930.0,112920.0,0.04027]
[1756388524482,1.57627,112930.0,112920.0,0.04027]
[1756388524977,2.42175,112930.0,112920.0,0.04027]
[1756388525183,1.74083,112930.0,112920.0,0.04027]
[1756388525382,0.88536,112930.0,112920.0,0.04027]
[1756388525611,0.88524,112930.0,112920.0,0.65107]
[1756388525777,0.04,112930.0,112920.0,0.65107]
[1756388525983,0.36547,112930.0,112920.0,0.40107]
[1756388526188,0.75065,112930.0,112910.0,0.38537]
[1756388526390,1.76413,112920.0,112910.0,0.40107]
[1756388526690,0.89547,112920.0,112910.0,0.40107]
[1756388526886,1.72528,112920.0,112910.0,0.65107]
[1756388527185,1.72528,112920.0,112910.0,0.3765]
[1756388527186,1.74075,112920.0,112910.0,0.3765]
[1756388527391,1.75075,112920.0,112910.0,0.0157]
[1756388527690,2.08075,112920.0,112910.0,0.0157]
[1756388527885,2.08175,112920.0,112910.0,0.0187]
[1756388528090,2.08175,112920.0,112910.0,0.003]
[1756388528678,2.10613,112920.0,112910.0,0.003]
[1756388529587,2.10613,112920.0,112910.0,0.04327]
[1756388529993,2.10613,112920.0,112910.0,0.0187]
[1756388530192,2.17729539,112920.0,112910.0,0.04327]
[1756388530491,1.23647,112920.0,112910.0,0.65407]
[1756388530689,1.23647,112920.0,112910.0,0.7426305]
[1756388530690,1.221,112920.0,112910.0,0.7426305]
[1756388530896,0.001,112920.0,112910.0,0.7426305]
[1756388531283,0.001,112920.0,112910.0,1.5879905]
[1756388531483,0.01785876,112940.0,112920.0,0.0885527]
[1756388531690,0.3608,112960.0,112950.0,0.04027]
[1756388531887,1.00547,112960.0,112950.0,0.40107]
[1756388532188,0.12547,112960.0,112950.0,0.4895992]
[1756388532393,0.12547,112960.0,112950.0,0.65107]
[1756388532694,0.12547,112960.0,112950.0,0.7395992]
[1756388532695,0.11,112960.0,112950.0,0.7395992]
[1756388532893,0.07220597,112960.0,112950.0,0.7395992]
[1756388533090,0.02460765,112960.0,112950.0,1.5853592]
[1756388533692,0.02460765,112960.0,112950.0,1.5863592]
[1756388533693,0.004,112960.0,112950.0,1.5863592]
[1756388533993,0.00122,112960.0,112950.0,1.5617892]
[1756388534194,0.00122,112960.0,112950.0,1.3117892]
[1756388534799,0.00122,112960.0,112950.0,0.4660292]
[1756388534992,0.00122,112960.0,112950.0,1.3121892]
[1756388535997,0.00122,112960.0,112950.0,1.3111892]
[1756388536200,0.003,112960.0,112950.0,1.3111892]
[1756388536390,0.003,112960.0,112950.0,1.38346159]
[1756388536783,0.04759832,112970.0,112960.0,0.0885213]
[1756388537008,0.04759832,112970.0,112960.0,0.4493213]
[1756388537190,0.04759832,112970.0,112960.0,0.6993213]
[1756388537489,0.04759832,112980.0,112970.0,0.0885135]
[1756388537697,0.04759832,112980.0,112970.0,1.2948335]
[1756388538494,0.04759832,112980.0,112970.0,1.5448335]
[1756388538690,0.04759832,113000.0,112990.0,0.0884978]
[1756388538985,0.08107502,113010.0,113000.0,0.08849]
[1756388538986,0.06520883,113010.0,113000.0,0.08849]
[1756388539191,0.04759832,113020.0,113010.0,0.0884822]
[1756388539388,0.04759832,113020.0,113010.0,1.20724]
[1756388539991,0.04759832,113020.0,113010.0,1.2957222]
[1756388540391,0.04759832,113020.0,113010.0,1.55470978]
[1756388540590,0.04759832,113030.0,113020.0,0.0884743]
[1756388540796,0.04759832,113030.0,113020.0,0.4492743]
[1756388540996,0.06346451,113040.0,113030.0,0.0884665]
[1756388540997,0.04759832,113040.0,113030.0,0.0884665]
[1756388541192,0.04759832,113040.0,113030.0,1.2952265]
[1756388541689,0.06306832,113040.0,113030.0,0.3608]
[1756388541894,0.03985,113040.0,113030.0,0.3608]
[1756388542497,0.04750908,113040.0,113030.0,0.4492665]
[1756388542693,0.04750908,113040.0,113030.0,0.6992665]
[1756388542896,0.04750908,113040.0,113030.0,0.769846]
[1756388543194,0.04750908,113050.0,113040.0,0.0884587]
[1756388543392,0.04750908,113060.0,113050.0,0.0884509]
[1756388543609,0.04750908,113060.0,113050.0,0.6992509]
[1756388543892,0.04750908,113080.0,113050.0,0.6108]
[1756388544093,0.04750908,113090.0,113080.0,0.0884274]
[1756388544291,0.04750908,113090.0,113080.0,1.2960674]
[1756388544496,0.04750908,113100.0,113080.0,1.20764]
[1756388544696,0.04750908,113100.0,113090.0,0.3608]
[1756388544897,0.08735908,113100.0,113090.0,0.3608]
[1756388545301,0.08735908,113100.0,113090.0,1.20756]
[1756388545702,0.11268567,113100.0,113090.0,0.3608]
[1756388545995,0.3786411,113100.0,113090.0,0.3608]
[1756388546492,0.03985,113090.0,113080.0,0.3608]
[1756388546800,0.02532659,113090.0,113080.0,0.3608]
[1756388547341,0.1296411,113090.0,113080.0,0.3608]
[1756388547496,0.1296411,113090.0,113080.0,0.3618]
[1756388547714,0.3796411,113090.0,113080.0,0.001]
[1756388547998,0.02438,113080.0,113070.0,0.3608]
[1756388548300,0.14450723,113080.0,113070.0,0.3608]
[1756388548499,0.14450723,113080.0,113060.0,0.3608]
[1756388548699,0.06336422,113070.0,113060.0,1.20852]
[1756388548900,0.10416081,113070.0,113060.0,0.3608]
[1756388549101,0.12854081,113070.0,113060.0,1.20868]
[1756388549909,0.12854081,113070.0,113060.0,0.3608]
[1756388550204,0.02385,113060.0,113040.0,0.3608]
[1756388550394,0.03953,113050.0,113040.0,0.3608]
[1756388550589,0.10437323,113050.0,113040.0,0.3608]
[1756388551203,0.08869323,113050.0,113040.0,0.3608]
[1756388551605,0.12822323,113050.0,113040.0,0.3608]
[1756388551799,0.10637323,113050.0,113040.0,0.3608]
[1756388552099,0.09069323,113050.0,113040.0,0.4492587]
[1756388552306,0.09469323,113050.0,113040.0,0.3608]
[1756388552606,0.11037323,113050.0,113040.0,0.3608]
[1756388552806,0.13422323,113050.0,113040.0,0.3608]
[1756388553209,0.15018723,113050.0,113040.0,0.3608]
[1756388554105,0.12633723,113050.0,113040.0,0.3608]
[1756388554308,0.10965723,113050.0,113040.0,0.4492587]
[1756388554512,0.03032659,113050.0,113040.0,0.6992587]
[1756388555009,0.07485544,113050.0,113040.0,0.6992587]
[1756388555203,0.07685544,113050.0,113040.0,0.6992587]
[1756388555408,0.02832659,113050.0,113040.0,0.6992587]
[1756388556203,0.02432659,113050.0,113040.0,0.6992587]
[1756388556404,0.02732659,113050.0,113040.0,0.6992587]
[1756388557305,0.003,113050.0,113040.0,0.6992587]
[1756388557614,9e-08,113050.0,113040.0,0.6992587]
[1756388557915,0.04752885,113090.0,113080.0,0.0884274]
[1756388558111,0.04752885,113090.0,113080.0,1.6579074]
[1756388558313,0.0884196,113090.0,113080.0,1.6579021]
[1756388558528,0.0884196,113090.0,113080.0,1.6584274]
[1756388558716,0.0884196,113090.0,113080.0,1.6583874]
[1756388558905,0.3779496,113090.0,113080.0,0.3608]
[1756388559109,0.42547845,113090.0,113080.0,0.3608]
[1756388560014,0.42847845,113090.0,113080.0,0.3608]
[1756388561312,0.0884282,113080.0,113070.0,0.3608]
[1756388561511,0.17548705,113080.0,113070.0,1.20924]
[1756388561706,0.42548705,113080.0,113070.0,1.20928]
[1756388561914,0.3779582,113080.0,113070.0,0.3608]
[1756388562211,0.44131992,113080.0,113070.0,0.3608]
[1756388562419,0.19131992,113080.0,113070.0,0.3608]
[1756388562710,0.19131992,113080.0,113070.0,0.4492352]
[1756388562711,0.0884282,113080.0,113070.0,0.4492352]
[1756388562919,0.0884274,113080.0,113070.0,0.4492306]
[1756388563214,0.1071074,113080.0,113070.0,0.3608]
[1756388563513,0.1091074,113080.0,113070.0,0.3608]
[1756388563912,0.1091074,113080.0,113070.0,0.4492353]
[1756388564412,0.0934274,113080.0,113070.0,0.4492353]
[1756388564613,0.005,113080.0,113070.0,0.6992353]
[1756388565018,0.004,113080.0,113070.0,0.6992353]
[1756388565217,0.004,113080.0,113070.0,0.8107002]
[1756388565415,0.002,113080.0,113070.0,0.6992353]
[1756388565965,0.02385,113130.0,113100.0,0.0884078]
[1756388566118,0.02385,113130.0,113120.0,0.3608]
[1756388566119,0.03953,113130.0,113120.0,0.3608]
[1756388566718,0.02385,113120.0,113110.0,1.20888]
[1756388567719,0.4491834,113140.0,113110.0,1.20888]
[1756388567720,0.02385,113130.0,113110.0,1.20888]
[1756388568027,0.01568,113120.0,113110.0,1.20888]
[1756388568216,0.03953,113120.0,113110.0,1.20888]
[1756388568819,0.0883834,113140.0,113110.0,1.20888]
[1756388569120,0.004,113130.0,113120.0,0.0883962]
[1756388569324,0.004,113130.0,113120.0,0.4491962]
[1756388569516,0.02385,113150.0,113120.0,0.4491962]
[1756388569718,0.03953,113150.0,113140.0,0.3608]
[1756388570621,0.31455614,113150.0,113140.0,0.3608]
[1756388571621,0.02385,113140.0,113120.0,0.3608]
[1756388571818,0.03953,113130.0,113120.0,0.3608]
[1756388572024,0.31455614,113130.0,113120.0,0.3608]
[1756388572222,0.31455614,113130.0,113110.0,1.20824]
[1756388572223,0.02385,113120.0,113110.0,1.20824]
[1756388572620,0.3628,113140.0,113110.0,1.20824]
[1756388572621,0.3608,113140.0,113110.0,1.20824]
[1756388572819,0.02385,113130.0,113110.0,1.20824]
[1756388573016,0.04886964,113130.0,113110.0,1.20824]
[1756388573622,0.002,113120.0,113110.0,1.2800283]
[1756388573818,0.004,113120.0,113110.0,1.2800283]
[1756388574019,0.02785,113120.0,113110.0,1.2800283]
[1756388574727,0.004,113120.0,113110.0,1.3684323]
[1756388575328,0.002,113120.0,113110.0,1.6184323]
[1756388576123,0.004,113120.0,113110.0,1.6184323]
[1756388576824,0.02385,113140.0,113110.0,1.5300283]
[1756388577020,0.04153,113130.0,113120.0,0.3608]
[1756388577222,0.06654875,113130.0,113120.0,0.3608]
[1756388577927,0.06454875,113130.0,113120.0,0.3608]
[1756388578124,0.31454875,113130.0,113120.0,0.3608]
[1756388578330,0.02385,113120.0,113110.0,0.3608]
[1756388578532,0.03953,113120.0,113110.0,0.3608]
[1756388578725,0.06454579,113120.0,113110.0,0.3608]
[1756388579825,0.06854579,113120.0,113110.0,0.3608]
[1756388580455,0.02462,113110.0,113100.0,1.22874425]
[1756388580619,0.02462,113110.0,113090.0,0.3608]
[1756388580620,0.01641,113100.0,113080.0,1.20884]
[1756388580932,0.40183,113090.0,113080.0,0.01983506]
[1756388581431,0.67683301,113090.0,113080.0,0.01983506]
[1756388582622,0.31603301,113090.0,113080.0,0.01983506]
[1756388582822,0.31603301,113090.0,113080.0,0.46906276]
[1756388582823,0.02500301,113090.0,113080.0,0.46906276]
[1756388583037,0.04379441,113110.0,113080.0,0.71906276]
[1756388583231,0.01641,113100.0,113090.0,0.3608]
[1756388583436,0.06604146,113100.0,113090.0,0.3608]
[1756388583637,0.29142146,113100.0,113080.0,0.38063506]
[1756388583947,0.04103,113090.0,113080.0,0.38063506]
[1756388584134,0.06604035,113090.0,113080.0,0.38063506]
[1756388584645,0.07104035,113090.0,113080.0,0.38063506]
[1756388585029,0.32104035,113090.0,113080.0,0.38063506]
[1756388586436,0.31804035,113090.0,113080.0,0.38063506]
[1756388587142,0.67784035,113090.0,113080.0,0.01983506]
[1756388587337,0.67784035,113090.0,113040.0,0.11145133]
[1756388587338,0.04103,113050.0,113040.0,0.11145133]
[1756388587531,0.06603301,113050.0,113040.0,0.449259]
[1756388587747,0.04141301,113050.0,113040.0,0.3608]
[1756388587943,0.06603301,113050.0,113030.0,0.3608]
[1756388588138,0.06603301,113050.0,113030.0,0.4492669]
[1756388588139,0.04103,113040.0,113030.0,0.4492669]
[1756388588338,0.02500301,113040.0,113030.0,0.4492669]
[1756388588542,0.02462,113050.0,113030.0,0.4492669]
[1756388588839,0.06603301,113050.0,113030.0,0.4492669]
[1756388589239,0.02462,113040.0,113030.0,0.3608]
[1756388589441,0.01641,113040.0,113030.0,0.3608]
[1756388589646,0.04103,113050.0,113030.0,0.3608]
[1756388589944,0.06603151,113050.0,113040.0,0.002]
[1756388590540,0.02500151,113050.0,113040.0,0.3618]
[1756388591135,0.06603151,113050.0,113040.0,0.001]
[1756388591338,0.07003151,113050.0,113030.0,0.3608]
[1756388591537,0.02900151,113050.0,113040.0,0.3608]
[1756388592342,0.07003151,113050.0,113030.0,0.3608]
[1756388592540,0.02462,113040.0,113030.0,0.3608]
[1756388592746,0.04103,113040.0,113030.0,0.3608]
[1756388593744,0.01941,113050.0,113030.0,0.4492669]
[1756388593935,0.04303,113050.0,113040.0,0.3608]
[1756388594140,0.06803179,113050.0,113030.0,0.3618]
[1756388594755,0.04103,113040.0,113030.0,0.3618]
[1756388595241,0.67682525,113040.0,113030.0,0.001]
[1756388596243,0.06602525,113040.0,113030.0,0.001]
[1756388596444,0.06602525,113040.0,113020.0,0.3608]
[1756388596644,0.04140525,113040.0,113020.0,0.4492737]
[1756388596843,0.02499525,113040.0,113030.0,0.3608]
[1756388597144,0.02499525,113040.0,113030.0,0.4492669]
[1756388597349,0.002,113050.0,113040.0,0.088459]
[1756388597545,0.002,113050.0,113040.0,0.449259]
[1756388597742,0.02499735,113050.0,113040.0,0.449259]
[1756388597944,0.38579735,113060.0,113040.0,0.699259]
[1756388598251,0.38579735,113060.0,113050.0,0.4492512]
[1756388598252,0.02500044,113060.0,113050.0,0.4492512]
[1756388598441,0.01795965,113070.0,113060.0,0.0884434]
[1756388598639,0.01795965,113070.0,113060.0,0.3608]
[1756388598836,0.01795965,113070.0,113060.0,0.4492434]
[1756388599241,0.01795965,113070.0,113060.0,0.3608]
[1756388599740,0.01795965,113070.0,113060.0,0.4492434]
[1756388599949,0.01795965,113070.0,113060.0,0.6992434]
[1756388600147,0.01795965,113070.0,113060.0,0.3608]
[1756388600343,0.05898965,113070.0,113060.0,0.3608]
[1756388600543,0.04103,113060.0,113050.0,0.3608]
[1756388600738,0.04003,113060.0,113050.0,0.3618]
[1756388600943,0.04003,113060.0,113040.0,1.23034586]
[1756388600944,0.02462,113050.0,113040.0,1.23034586]
[1756388601549,0.3608,113060.0,113050.0,0.0026]
[1756388601746,0.06602791,113060.0,113050.0,0.0026]
[1756388601956,0.06602791,113060.0,113050.0,0.3634]
[1756388602751,0.02462,113050.0,113040.0,1.23134586]
[1756388602948,0.06602805,113050.0,113040.0,0.02210586]
[1756388603185,0.04103,113040.0,113030.0,0.3608]
[1756388603350,0.42682497,113040.0,113020.0,0.3608]
[1756388603551,0.04103,113030.0,113010.0,1.23095229]
[1756388603751,0.04103,113030.0,113010.0,1.23195229]
[1756388603945,0.06602171,113030.0,113010.0,1.23195229]
[1756388604159,0.02462,113020.0,113010.0,1.23195229]
[1756388604652,0.02462,113020.0,113010.0,0.87115229]
[1756388604847,0.02462,113020.0,113000.0,0.3618]
[1756388604848,0.06601988,113020.0,113000.0,0.3618]
[1756388605053,0.04103,113010.0,113000.0,0.3634]
[1756388605454,0.01641,113010.0,113000.0,0.3634]
[1756388605650,0.04103,113020.0,113010.0,0.0026]
[1756388605842,0.06601925,113020.0,113010.0,0.0026]
[1756388606052,0.02498925,113020.0,113010.0,0.3634]
[1756388606549,0.04139925,113020.0,113010.0,0.3634]
[1756388606753,0.04239925,113020.0,113010.0,0.0026]
[1756388606948,0.06701925,113020.0,113000.0,0.3618]
[1756388607153,0.04103,113010.0,113000.0,0.3618]
[1756388607648,0.04103,113010.0,113000.0,0.3634]
[1756388608355,0.003,113020.0,113010.0,0.0026]
[1756388608356,0.002,113020.0,113010.0,0.0026]
[1756388608554,0.05005336,113030.0,113010.0,0.3634]
[1756388608751,0.06646336,113030.0,113020.0,0.001]
[1756388608951,0.40264336,113030.0,113010.0,0.3618]
[1756388609147,0.06646336,113030.0,113010.0,0.3608]
[1756388609380,0.02543336,113030.0,113020.0,0.3634]
[1756388609556,0.40328303,113050.0,113030.0,0.0026]
[1756388609557,0.01641,113040.0,113030.0,0.0026]
[1756388609762,0.04103,113030.0,113020.0,0.001]
[1756388610057,0.06646521,113030.0,113010.0,0.3618]
[1756388610258,0.06647067,113030.0,113010.0,0.3618]
[1756388611148,0.002,113020.0,113010.0,0.3618]
[1756388611349,0.0173,113020.0,113010.0,0.3634]
[1756388611552,0.04163,113020.0,113010.0,0.3634]
[1756388611953,0.03963,113020.0,113010.0,0.3634]
[1756388612562,0.06506974,113020.0,113010.0,0.0026]
[1756388612769,0.06506974,113020.0,113010.0,0.3634]
[1756388613062,0.001,113030.0,113020.0,0.0026]
[1756388613557,0.001,113030.0,113020.0,0.4518747]
[1756388613558,0.02544091,113030.0,113020.0,0.4518747]
[1756388613764,0.40043,113040.0,113030.0,0.0026]
[1756388613968,0.42587325,113040.0,113030.0,0.0026]
[1756388614260,0.42587325,113040.0,113020.0,0.3618]
[1756388614461,0.02433,113030.0,113020.0,0.3618]
[1756388614663,0.04063,113030.0,113020.0,0.3634]
[1756388614850,0.02433,113010.0,113000.0,0.38012519]
[1756388615049,0.03963,113010.0,113000.0,0.01932519]
[1756388615255,0.06506707,113010.0,113000.0,0.02192519]
[1756388615457,0.04073707,113010.0,113000.0,0.38272519]
[1756388615653,0.06506707,113010.0,113000.0,0.38272519]
[1756388615856,0.06506707,113010.0,113000.0,0.02192519]
[1756388616456,0.06506707,113010.0,113000.0,0.01932519]
[1756388617159,0.06506707,113010.0,113000.0,0.02192519]
[1756388617764,0.06506707,113010.0,113000.0,0.02032519]
[1756388618460,0.06506707,113010.0,113000.0,0.02292519]
[1756388618664,0.06806707,113010.0,113000.0,0.02192519]
[1756388618856,0.04373707,113010.0,113000.0,0.02192519]
[1756388619055,0.04273707,113010.0,113000.0,0.02192519]
[1756388619258,0.07006707,113010.0,113000.0,0.01932519]
[1756388620262,0.06906707,113010.0,113000.0,0.01932519]
[1756388620456,0.67986707,113010.0,113000.0,0.01932519]
[1756388621366,0.67686707,113010.0,113000.0,0.01932519]
[1756388621561,0.65453707,113010.0,113000.0,0.01932519]
[1756388621866,0.31806707,113010.0,113000.0,0.01932519]
[1756388622063,0.31606707,113010.0,113000.0,0.01932519]
[1756388622258,0.04473707,113010.0,113000.0,0.38272519]
[1756388622458,0.04473707,113010.0,113000.0,0.02192519]
[1756388622870,0.02943707,113010.0,113000.0,0.72121549]
[1756388623068,0.003,113010.0,113000.0,0.72121549]
[1756388623267,0.005,113010.0,113000.0,0.72121549]
[1756388623464,0.005,113010.0,113000.0,0.72121559]
[1756388624159,0.005,113010.0,113000.0,1.57101559]
[1756388624367,0.003,113010.0,113000.0,1.57101559]
[1756388624564,0.004,113010.0,113000.0,1.57101559]
[1756388624964,0.004,113010.0,113000.0,1.48252519]
[1756388625265,0.004,113010.0,113000.0,1.48092519]
[1756388625266,0.003,113010.0,113000.0,1.48092519]
[1756388625858,0.001,113010.0,113000.0,1.23092519]
[1756388626059,0.02533,113010.0,113000.0,1.23192519]
[1756388626569,0.02433,113010.0,113000.0,1.23192519]
[1756388627165,0.02433,113020.0,113000.0,1.23192519]
[1756388627467,0.04063,113010.0,113000.0,1.23092519]
[1756388627668,0.04063,113010.0,113000.0,1.23192519]
[1756388627866,0.0163,113010.0,113000.0,1.23192519]
[1756388628467,0.04063,113010.0,113000.0,1.23192519]
[1756388628668,0.0163,113010.0,113000.0,1.23192519]
[1756388628974,0.04063,113010.0,113000.0,1.23092519]
[1756388629158,0.29263,113010.0,113000.0,0.38012519]
[1756388629362,0.29263,113010.0,113000.0,0.38272519]
[1756388629566,0.0173,113010.0,113000.0,0.38272519]
[1756388629775,0.002,113010.0,113000.0,0.47121559]
[1756388629965,0.002,113010.0,113000.0,1.57081559]
[1756388630569,0.002,113010.0,113000.0,1.23232519]
[1756388630759,0.003,113010.0,113000.0,1.23232519]
[1756388630969,0.003,113010.0,113000.0,1.32081549]
[1756388631265,0.003,113010.0,113000.0,1.23232519]
[1756388631663,0.001,113010.0,113000.0,1.23232519]
[1756388632264,0.001,113010.0,113000.0,1.32081559]
[1756388632459,0.001,113010.0,113000.0,1.23232519]
[1756388632866,0.02433,113020.0,113010.0,0.001]
[1756388633065,0.0153,113020.0,113010.0,0.3634]
[1756388633260,0.03963,113020.0,113010.0,0.3634]
[1756388633665,0.03963,113020.0,113000.0,1.23072519]
[1756388633666,0.02433,113010.0,113000.0,1.23072519]
[1756388633866,0.03963,113020.0,113010.0,0.0026]
[1756388634065,0.03963,113020.0,113000.0,1.31821529]
[1756388634066,0.04083009,113020.0,113000.0,0.3608]
[1756388634275,0.03963,112990.0,112980.0,1.21068]
[1756388634566,0.03963,112990.0,112970.0,0.38164263]
[1756388634768,0.03963,112980.0,112970.0,0.38324263]
[1756388634969,0.03963,112980.0,112970.0,0.02244263]
[1756388635174,0.28963,112980.0,112970.0,0.38324263]
[1756388635665,0.31513211,112980.0,112970.0,0.01984263]
[1756388635863,0.67593211,112980.0,112970.0,0.01984263]
[1756388637373,0.67893211,112980.0,112970.0,0.01984263]
[1756388638472,0.67893211,112980.0,112950.0,0.43331468]
[1756388638473,0.65860211,112980.0,112950.0,0.43331468]
[1756388638668,0.03963,112960.0,112950.0,0.3634]
[1756388639274,0.03963,112960.0,112950.0,0.3608]
[1756388639476,0.02433,112950.0,112940.0,1.2104]
[1756388639976,0.0412,112960.0,112950.0,0.0016]
[1756388640274,0.02484,112950.0,112940.0,1.2104]
[1756388640577,0.02484,112960.0,112940.0,1.2094]
[1756388640780,0.02484,112950.0,112940.0,1.2104]
[1756388641365,0.0412,112950.0,112940.0,0.3634]
[1756388641578,0.0412,112940.0,112930.0,0.38132329]
[1756388641779,1.2408,112960.0,112930.0,0.38192329]
[1756388641976,0.10556172,112950.0,112940.0,0.3618]
[1756388642273,0.13105591,112950.0,112940.0,0.3618]
[1756388642576,0.06769419,112950.0,112940.0,0.3634]
[1756388642775,0.06969419,112950.0,112940.0,0.0026]
[1756388642965,0.02849419,112950.0,112940.0,0.3634]
[1756388643168,0.06969419,112950.0,112940.0,0.3634]
[1756388644177,0.06969653,112950.0,112940.0,0.3634]
[1756388644375,0.04485653,112950.0,112940.0,0.3634]
[1756388644765,0.04385653,112950.0,112940.0,0.3634]
[1756388644971,0.06869653,112950.0,112940.0,0.3634]
[1756388645373,0.04385653,112950.0,112940.0,0.3634]
[1756388645876,0.04485653,112950.0,112940.0,0.3634]
[1756388646071,0.04485653,112950.0,112940.0,0.4519373]
[1756388646072,0.02849653,112950.0,112940.0,0.4519373]
[1756388646271,0.05047532,112950.0,112940.0,0.7019373]
[1756388646477,0.05047532,112950.0,112940.0,0.6134]
[1756388646981,0.07597185,112950.0,112940.0,0.7019373]
[1756388647170,0.02849653,112950.0,112940.0,0.7019373]
[1756388647374,0.02649653,112950.0,112940.0,0.7019373]
[1756388648080,0.02549653,112950.0,112940.0,0.7019373]
[1756388648280,0.02549653,112950.0,112940.0,0.7009373]
[1756388648482,0.02549653,112950.0,112940.0,0.4509373]
[1756388648883,0.02549653,112950.0,112940.0,1.5487373]
[1756388649180,0.02549653,112950.0,112940.0,2.10444264]
[1756388649876,0.02549653,112950.0,112940.0,2.10544264]
[1756388650280,0.02549653,112950.0,112940.0,2.10744264]
[1756388653877,0.02549653,112950.0,112940.0,2.66314798]
[1756388654190,0.04747532,112970.0,112960.0,0.0885217]
[1756388654487,0.04747532,112970.0,112960.0,2.21510704]
[1756388655083,0.07231532,112980.0,112960.0,2.21510704]
[1756388655385,0.08141079,112990.0,112980.0,0.088506]
[1756388655591,0.09141079,112990.0,112980.0,1.00501134]
[1756388655777,0.09141079,112990.0,112980.0,1.85437134]
[1756388655985,0.09141079,112990.0,112980.0,1.298666]
[1756388656279,0.09141079,112990.0,112980.0,1.76586534]
[1756388656489,0.13261079,112990.0,112980.0,0.3608]
[1756388656672,0.10777079,112990.0,112980.0,0.3608]
[1756388656873,0.10777079,112990.0,112980.0,1.00501134]
[1756388656874,0.02804907,112990.0,112980.0,1.00501134]
[1756388657273,0.04440907,112990.0,112980.0,1.00501134]
[1756388657473,0.02804907,112990.0,112980.0,1.00501134]
[1756388657674,0.0795639,112990.0,112980.0,1.00501134]
[1756388657884,0.0795639,112990.0,112980.0,0.91650534]
[1756388658286,0.04840907,112990.0,112980.0,0.91650534]
[1756388658482,0.07324907,112990.0,112980.0,0.3608]
[1756388658686,0.07324907,112990.0,112970.0,0.3608]
[1756388658687,0.13961079,112990.0,112970.0,1.73190534]
[1756388658881,0.04752952,112980.0,112970.0,1.73190534]
[1756388659096,0.08872952,112980.0,112970.0,0.3608]
[1756388659283,0.10456172,112980.0,112970.0,0.3608]
[1756388659496,0.02484,112970.0,112960.0,1.20928]
[1756388659685,0.08872612,112970.0,112960.0,0.3608]
[1756388659884,0.08872612,112970.0,112960.0,1.2092]
[1756388660084,0.10456172,112970.0,112950.0,0.93598184]
[1756388660285,0.08872295,112960.0,112950.0,0.3802765]
[1756388660488,0.10456172,112960.0,112950.0,0.3802765]
[1756388660682,0.91026706,112960.0,112950.0,0.0194765]
[1756388660988,1.20770534,112960.0,112950.0,0.0194765]
[1756388661201,1.28703598,112960.0,112930.0,1.94248571]
[1756388661387,0.0475145,112940.0,112930.0,1.94248571]
[1756388661595,0.0475145,112940.0,112930.0,2.30328571]
[1756388661991,0.0475145,112940.0,112930.0,1.85394121]
[1756388662207,0.0723545,112940.0,112930.0,1.29823587]
[1756388662487,0.10455267,112940.0,112930.0,0.38032329]
[1756388662693,0.0412,112940.0,112930.0,0.38032329]
[1756388664494,0.2912,112940.0,112930.0,0.38032329]
[1756388666187,0.31592639,112940.0,112930.0,0.38032329]
[1756388667895,0.29108639,112940.0,112930.0,0.38032329]
[1756388668195,0.0412,112940.0,112930.0,0.38032329]
[1756388668794,0.01636,112940.0,112930.0,0.38032329]
[1756388669196,0.37888402,112960.0,112940.0,0.0885373]
[1756388669495,0.44481537,112960.0,112940.0,1.00504264]
[1756388669691,0.44481537,112960.0,112940.0,0.91650534]
[1756388669888,0.44481537,112960.0,112940.0,1.85408154]
[1756388670592,0.06017537,112960.0,112940.0,1.2983762]
[1756388670801,0.04381537,112960.0,112950.0,0.3608]
[1756388671008,0.06000537,112960.0,112950.0,0.3608]
[1756388671297,0.08344537,112960.0,112950.0,0.3608]
[1756388671891,0.08344537,112960.0,112950.0,0.4493295]
[1756388672088,0.06000537,112960.0,112950.0,0.4493295]
[1756388672289,0.02008402,112960.0,112950.0,0.4493295]
[1756388672494,0.02008402,112960.0,112950.0,1.00503484]
[1756388672703,0.02008402,112960.0,112950.0,2.10351484]
[1756388672898,0.02008402,112960.0,112950.0,0.6993295]
[1756388673098,0.01908402,112960.0,112950.0,1.25503484]
[1756388673301,0.02108402,112960.0,112950.0,1.25503484]
[1756388673502,0.02008402,112960.0,112950.0,1.25503484]
[1756388673798,0.02208402,112960.0,112950.0,1.25503484]
[1756388674203,0.02008402,112960.0,112950.0,1.25503484]
[1756388675799,0.01808402,112960.0,112950.0,0.4493295]
[1756388676005,0.03427402,112960.0,112950.0,1.2974495]
[1756388676397,0.03427402,112960.0,112950.0,1.20892]
[1756388676698,0.03427402,112960.0,112950.0,0.3608]
[1756388677100,0.03427402,112960.0,112950.0,1.20784]
[1756388677401,0.88815564,112960.0,112950.0,0.3608]
[1756388678107,0.0590103,112960.0,112950.0,0.3608]
[1756388678609,0.0824503,112960.0,112950.0,0.3608]
[1756388679108,0.02473628,112960.0,112950.0,1.00503474]
[1756388679306,1.86825739,112990.0,112960.0,0.0885157]